Workbook

Sheet Hoja2 (hidden)
A1: 0 | B1: Si | C1: Cliente | D1: Cedula de ciudadania | E1: Natural | F1: Manufacturero
A2: 1 | B2: No | C2: Proveedor | D2: NIT | E2: Juridica | F2: Servicios
A3: 2 | C3: Empleado | D3: Pasaporte | F3: Comercio
A4: 3 | C4: Accionista | D4: Cedula de Extranjeria
A5: 4 | C5: Aliado de negocio | D5: Otra
A6: 5

Sheet Impacto y Frecuencia
A1: Título: Matriz de administracion de LA/FT
A2: Código: TPESC307PU4E7MA2OV01
A4: Impacto Financiero | B4: Categoría | C4: De | D4: Hasta | L4: VALORACION DE LA FRECUENCIA
B5: 1 | C5: 0 | D5: 100000000
B6: 2 | C6: 100000001 | D6: 300000000 | L6: Categoria | M6: Frecuencia
B7: 3 | C7: 300000001 | D7: 500000000 | L7: 1 | M7: Una vez al año
B8: 4 | C8: 500000001 | D8: 800000000 | L8: 2 | M8: Una vez al semestre
B9: 5 | C9: 800000001 | L9: 3 | M9: Una vez al trimestre
L10: 4 | M10: Una vez al mes
A11: Riesgo Legal | B11: Categoría | C11: Descripción | L11: 5 | M11: Una vez a la semana
B12: 1 | C12: Amonestación o Llamado de Atención de las Autoridades Competentes
B13: 2 | C13: Sanciones mínimas y/o a sus funcionarios o a la entidad
B14: 3 | C14: Sanciones menores a la entidad y/o a sus funcionarios
B15: 4 | C15: Sanciones Mayores a la entidad y/o a sus funcionarios
B16: 5 | C16: Sanciones graves que podrián llevar al cierre del negocio
A18: Riesgo Reputacional | B18: Categoria | C18: Descripción
B19: 1 | C19: Con consecuencias reputacionales en un area de la entidad
B20: 2 | C20: Con consecuencias reputacionales en mas de dos areas de la entidad
B21: 3 | C21: Con consecuencias reputacionales en el ambito nacional
B22: 4 | C22: Con consecuencias reputacionales en el ambito nacional involucrando funcionarios de la entidad
B23: 5 | C23: Con consecuencias reputacionales en el ambito internacional involucrando funcionarios y a accionistas
A25: Riesgo Operativo | B25: Categoria | C25: Descripción
B26: 1 | C26: No se presentan interrupciones en la operación, ni daños a las personas ni perdidas causadas por incidentes
B27: 2 | C27: Se presentan interrupciones en la operación, daños y perdidas menores
B28: 3 | C28: Se presentan interrupciones en la operación, daños y perdidas moderadas
B29: 4 | C29: Se presentan interrupciones en la operación, daños y perdidas mayores
B30: 5 | C30: Se presentan interrupciones en la operación, daños y perdidas graves que pueden afectar la continuidad del negocio
A32: Riesgo de Contagio | B32: Categoria | C32: Descripción
B33: 1 | C33: No se presentan incidentes que involucren a terceros
B34: 2 | C34: Se presentan incidentes menores generados por la acción de un tercero
B35: 3 | C35: Se presentan incidentes moderados generados por la accion de un tercero que involucra a funcionarios de la entidad
B36: 4 | C36: Se presentan incidentes mayores generados por la accion de un tercero que involucra a funcionarios y a accionistas de la entidad
B37: 5 | C37: Se presentan incidentes graves con sanciones a terceros, accionistas, directivos y funcionarios de la entidad

Sheet Matriz de Registro de Eventos
A3: Ref | B3: Evento | C3: Fecha de Inicio del Evento | D3: Fecha de Finalización del Evento | E3: Fecha del Descubrimiento | G3: Perdida real o estimada | H3: Área de la Organización Involucrada | I3: Proceso Afectado | J3: Contraparte involucrada | K3: FACTORES DE RIESGO (Califique de uno a cinco el nivel de afectación) | Q3: vincula a un PEP
F4: Fecha de Contabilización | K4: Clientes | L4: Productos | M4: Canales de Distribución | N4: Jurisdicción | O4: Cuentas Contables Afectadas | P4: Tipo de Pérdida
A5: 1 | B5: Ocultamiento de información relevante vinculada a corrupción que debe ser de conocimiento publico | G5: 2000000000 | H5: Directivas de reficar | I5: Refinación de petroleo | J5: Aliado de negocio | K5: 5 | L5: 3 | M5: 5 | N5: 0 | Q5: Si
A6: =+IF(B6=0,"",A5+1) -> 2 | B6: Compra de acciones de ecopetrol, por parte de lavadores de dinero | G6: 5000000000 | H6: Tesoreria | I6: Gestion del patrimonio | J6: Accionista | K6: 1 | L6: 5 | M6: 3 | N6: 5 | Q6: No
A7: =+IF(B7=0,"",A6+1) -> 3 | B7: Soborno transnacional | G7: 3000000000 | H7: Comercial | I7: Compras | J7: Aliado de negocio | K7: 4 | L7: 4 | M7: 4 | N7: 4 | Q7: Si
F15: =+F14+15 -> 1900-01-15
F16: 1900-01-30
F17: 1900-02-14
F18: 60
F19: 1900-03-15
F20: 1900-03-30
F21: 1900-04-14
F22: 1900-04-29
F23: 1900-05-14

Sheet Matriz de Evaluación y Control
B4: Ref | C4: Factor de Riesgo | D4: Impacto Financiero | E4: Riesgo legal | F4: Riesgo Reputacional | G4: Riesgo Operativo | H4: Riesgo de Contagio | I4: Impacto | J4: Frecuencia | K4: Probabilidad | L4: Riesgo Inherente | M4: Controles | N4: Efectividad para mitigar el Impacto | O4: Impacto Luego de Controles | P4: Frecuencia Luego de Controles | Q4: Probabilidad Luego de Controles | R4: El control cuenta con recursos (Financieros, FÍsicos y Humanos) | S4: El control se encuentra estructurado y documentado | T4: Riesgo Residual | AC4: NIVEL DE IMPACTO
B5: =+'Matriz de Registro de Eventos'!A5 -> 1 | C5: =IF('Matriz de Registro de Eventos'!B5=0,"",'Matriz de Registro de Eventos'!B5) -> Ocultamiento de información relevante vinculada a corrupción que debe ser de conocimiento publico | D5: =+IF('Matriz de Registro de Eventos'!B5=0,"",IF('Matriz de Registro de Eventos'!G5<'Matriz de Evaluación y Control'!$AD$6,'Matriz de Evaluación y Control'!$AE$6,IF('Matriz de Registro de Eventos'!G5<='Matriz de Evaluación y Control'!$AD$7,'Matriz de Evaluación y Control'!$AE$7,IF('Matriz de Registro de Eventos'!G5<='Matriz de Evaluación y Control'!$AD$8,'Matriz de Evaluación y Control'!$AE$8,IF('Matriz de Registro de Eventos'!G5<='Matriz de Evaluación y Control'!$AD$9,'Matriz de Evaluación y Control'!$AE$9,IF('Matriz de Registro de Eventos'!G5>=$AC$10,'Matriz de Evaluación y Control'!$AE$10)))))) -> 5 | E5: 3 | F5: 4 | G5: 5 | H5: 5 | I5: =IF('Matriz de Registro de Eventos'!B5=0,0,ROUNDUP(AVERAGE(D5:H5),0)) -> 5 | J5: Una vez a la semana | K5: =IFERROR(_xlfn.XLOOKUP(J5,'Impacto y Frecuencia'!$M$7:$M$11,'Impacto y Frecuencia'!$L$7:$L$11),"") -> 5 | L5: =IFERROR(I5*K5,"") -> 25 | M5: Auditoria internacional a los proyectos de inversión de la compañía | N5: 0.4 | O5: =+IF('Matriz de Registro de Eventos'!B5>0,ROUNDUP(I5*(1-N5),0),0) -> 3 | P5: Una vez al trimestre | Q5: =+IFERROR(_xlfn.XLOOKUP(P5,'Impacto y Frecuencia'!$M$7:$M$11,'Impacto y Frecuencia'!$L$7:$L$11),0) -> 3 | R5: Si | S5: Si | T5: =+O5*Q5 -> 9 | AC5: De | AD5: Hasta | AE5: Nivel de Impacto
B6: =+'Matriz de Registro de Eventos'!A6 -> 2 | C6: =IF('Matriz de Registro de Eventos'!B6=0,"",'Matriz de Registro de Eventos'!B6) -> Compra de acciones de ecopetrol, por parte de lavadores de dinero | D6: =+IF('Matriz de Registro de Eventos'!B6=0,"",IF('Matriz de Registro de Eventos'!G6<'Matriz de Evaluación y Control'!$AD$6,'Matriz de Evaluación y Control'!$AE$6,IF('Matriz de Registro de Eventos'!G6<='Matriz de Evaluación y Control'!$AD$7,'Matriz de Evaluación y Control'!$AE$7,IF('Matriz de Registro de Eventos'!G6<='Matriz de Evaluación y Control'!$AD$8,'Matriz de Evaluación y Control'!$AE$8,IF('Matriz de Registro de Eventos'!G6<='Matriz de Evaluación y Control'!$AD$9,'Matriz de Evaluación y Control'!$AE$9,IF('Matriz de Registro de Eventos'!G6>=$AC$10,'Matriz de Evaluación y Control'!$AE$10)))))) -> 5 | E6: 2 | F6: 3 | G6: 1 | H6: 3 | I6: =IF('Matriz de Registro de Eventos'!B6=0,0,ROUNDUP(AVERAGE(D6:H6),0)) -> 3 | J6: Una vez al año | K6: =IFERROR(_xlfn.XLOOKUP(J6,'Impacto y Frecuencia'!$M$7:$M$11,'Impacto y Frecuencia'!$L$7:$L$11),"") -> 1 | L6: =IFERROR(I6*K6,"") -> 3 | M6: Debida diligencia | N6: 0.5 | O6: =+IF('Matriz de Registro de Eventos'!B6>0,ROUNDUP(I6*(1-N6),0),0) -> 2 | P6: Una vez al año | Q6: =+IFERROR(_xlfn.XLOOKUP(P6,'Impacto y Frecuencia'!$M$7:$M$11,'Impacto y Frecuencia'!$L$7:$L$11),0) -> 1 | R6: Si | S6: Si | T6: =+O6*Q6 -> 2 | AC6: =+'Impacto y Frecuencia'!C5 -> 0 | AD6: =+'Impacto y Frecuencia'!D5 -> 100000000 | AE6: 1
B7: =+'Matriz de Registro de Eventos'!A7 -> 3 | C7: =IF('Matriz de Registro de Eventos'!B7=0,"",'Matriz de Registro de Eventos'!B7) -> Soborno transnacional | D7: =+IF('Matriz de Registro de Eventos'!B7=0,"",IF('Matriz de Registro de Eventos'!G7<'Matriz de Evaluación y Control'!$AD$6,'Matriz de Evaluación y Control'!$AE$6,IF('Matriz de Registro de Eventos'!G7<='Matriz de Evaluación y Control'!$AD$7,'Matriz de Evaluación y Control'!$AE$7,IF('Matriz de Registro de Eventos'!G7<='Matriz de Evaluación y Control'!$AD$8,'Matriz de Evaluación y Control'!$AE$8,IF('Matriz de Registro de Eventos'!G7<='Matriz de Evaluación y Control'!$AD$9,'Matriz de Evaluación y Control'!$AE$9,IF('Matriz de Registro de Eventos'!G7>=$AC$10,'Matriz de Evaluación y Control'!$AE$10)))))) -> 5 | E7: 4 | F7: 5 | G7: 3 | H7: 5 | I7: =IF('Matriz de Registro de Eventos'!B7=0,0,ROUNDUP(AVERAGE(D7:H7),0)) -> 5 | J7: Una vez al semestre | K7: =IFERROR(_xlfn.XLOOKUP(J7,'Impacto y Frecuencia'!$M$7:$M$11,'Impacto y Frecuencia'!$L$7:$L$11),"") -> 2 | L7: 10 | M7: Auditoria internacional a los proyectos de inversión de la compañía | N7: 0.4 | O7: =+IF('Matriz de Registro de Eventos'!B7>0,ROUNDUP(I7*(1-N7),0),0) -> 3 | P7: Una vez al semestre | Q7: =+IFERROR(_xlfn.XLOOKUP(P7,'Impacto y Frecuencia'!$M$7:$M$11,'Impacto y Frecuencia'!$L$7:$L$11),0) -> 2 | R7: Si | S7: Si | T7: 6 | AC7: =+'Impacto y Frecuencia'!C6 -> 100000001 | AD7: =+'Impacto y Frecuencia'!D6 -> 300000000 | AE7: 2
B8: =+'Matriz de Registro de Eventos'!A8 ->  | C8: =IF('Matriz de Registro de Eventos'!B8=0,"",'Matriz de Registro de Eventos'!B8) ->  | D8: =+IF('Matriz de Registro de Eventos'!B8=0,"",IF('Matriz de Registro de Eventos'!G8<'Matriz de Evaluación y Control'!$AD$6,'Matriz de Evaluación y Control'!$AE$6,IF('Matriz de Registro de Eventos'!G8<='Matriz de Evaluación y Control'!$AD$7,'Matriz de Evaluación y Control'!$AE$7,IF('Matriz de Registro de Eventos'!G8<='Matriz de Evaluación y Control'!$AD$8,'Matriz de Evaluación y Control'!$AE$8,IF('Matriz de Registro de Eventos'!G8<='Matriz de Evaluación y Control'!$AD$9,'Matriz de Evaluación y Control'!$AE$9,IF('Matriz de Registro de Eventos'!G8>=$AC$10,'Matriz de Evaluación y Control'!$AE$10)))))) ->  | I8: =IF('Matriz de Registro de Eventos'!B8=0,0,ROUNDUP(AVERAGE(D8:H8),0)) -> 0 | K8: =IFERROR(_xlfn.XLOOKUP(J8,'Impacto y Frecuencia'!$M$7:$M$11,'Impacto y Frecuencia'!$L$7:$L$11),"") ->  | O8: =+IF('Matriz de Registro de Eventos'!B8>0,ROUNDUP(I8*(1-N8),0),0) -> 0 | Q8: =+IFERROR(_xlfn.XLOOKUP(P8,'Impacto y Frecuencia'!$M$7:$M$11,'Impacto y Frecuencia'!$L$7:$L$11),0) -> 0 | T8: 0 | AC8: =+'Impacto y Frecuencia'!C7 -> 300000001 | AD8: =+'Impacto y Frecuencia'!D7 -> 500000000 | AE8: 3
B9: =+'Matriz de Registro de Eventos'!A9 ->  | C9: =IF('Matriz de Registro de Eventos'!B9=0,"",'Matriz de Registro de Eventos'!B9) ->  | D9: =+IF('Matriz de Registro de Eventos'!B9=0,"",IF('Matriz de Registro de Eventos'!G9<'Matriz de Evaluación y Control'!$AD$6,'Matriz de Evaluación y Control'!$AE$6,IF('Matriz de Registro de Eventos'!G9<='Matriz de Evaluación y Control'!$AD$7,'Matriz de Evaluación y Control'!$AE$7,IF('Matriz de Registro de Eventos'!G9<='Matriz de Evaluación y Control'!$AD$8,'Matriz de Evaluación y Control'!$AE$8,IF('Matriz de Registro de Eventos'!G9<='Matriz de Evaluación y Control'!$AD$9,'Matriz de Evaluación y Control'!$AE$9,IF('Matriz de Registro de Eventos'!G9>=$AC$10,'Matriz de Evaluación y Control'!$AE$10)))))) ->  | I9: =IF('Matriz de Registro de Eventos'!B9=0,0,ROUNDUP(AVERAGE(D9:H9),0)) -> 0 | K9: =IFERROR(_xlfn.XLOOKUP(J9,'Impacto y Frecuencia'!$M$7:$M$11,'Impacto y Frecuencia'!$L$7:$L$11),"") ->  | O9: =+IF('Matriz de Registro de Eventos'!B9>0,ROUNDUP(I9*(1-N9),0),0) -> 0 | Q9: =+IFERROR(_xlfn.XLOOKUP(P9,'Impacto y Frecuencia'!$M$7:$M$11,'Impacto y Frecuencia'!$L$7:$L$11),0) -> 0 | T9: 0 | AC9: =+'Impacto y Frecuencia'!C8 -> 500000001 | AD9: =+'Impacto y Frecuencia'!D8 -> 800000000 | AE9: 4
B10: =+'Matriz de Registro de Eventos'!A10 ->  | C10: =IF('Matriz de Registro de Eventos'!B10=0,"",'Matriz de Registro de Eventos'!B10) ->  | D10: =+IF('Matriz de Registro de Eventos'!B10=0,"",IF('Matriz de Registro de Eventos'!G10<'Matriz de Evaluación y Control'!$AD$6,'Matriz de Evaluación y Control'!$AE$6,IF('Matriz de Registro de Eventos'!G10<='Matriz de Evaluación y Control'!$AD$7,'Matriz de Evaluación y Control'!$AE$7,IF('Matriz de Registro de Eventos'!G10<='Matriz de Evaluación y Control'!$AD$8,'Matriz de Evaluación y Control'!$AE$8,IF('Matriz de Registro de Eventos'!G10<='Matriz de Evaluación y Control'!$AD$9,'Matriz de Evaluación y Control'!$AE$9,IF('Matriz de Registro de Eventos'!G10>=$AC$10,'Matriz de Evaluación y Control'!$AE$10)))))) ->  | I10: =IF('Matriz de Registro de Eventos'!B10=0,0,ROUNDUP(AVERAGE(D10:H10),0)) -> 0 | K10: =IFERROR(_xlfn.XLOOKUP(J10,'Impacto y Frecuencia'!$M$7:$M$11,'Impacto y Frecuencia'!$L$7:$L$11),"") ->  | O10: =+IF('Matriz de Registro de Eventos'!B10>0,ROUNDUP(I10*(1-N10),0),0) -> 0 | Q10: =+IFERROR(_xlfn.XLOOKUP(P10,'Impacto y Frecuencia'!$M$7:$M$11,'Impacto y Frecuencia'!$L$7:$L$11),0) -> 0 | T10: 0 | AC10: =+'Impacto y Frecuencia'!C9 -> 800000001 | AD10: =+'Impacto y Frecuencia'!D9 -> 0 | AE10: 5
B11: =+'Matriz de Registro de Eventos'!A11 ->  | C11: =IF('Matriz de Registro de Eventos'!B11=0,"",'Matriz de Registro de Eventos'!B11) ->  | D11: =+IF('Matriz de Registro de Eventos'!B11=0,"",IF('Matriz de Registro de Eventos'!G11<'Matriz de Evaluación y Control'!$AD$6,'Matriz de Evaluación y Control'!$AE$6,IF('Matriz de Registro de Eventos'!G11<='Matriz de Evaluación y Control'!$AD$7,'Matriz de Evaluación y Control'!$AE$7,IF('Matriz de Registro de Eventos'!G11<='Matriz de Evaluación y Control'!$AD$8,'Matriz de Evaluación y Control'!$AE$8,IF('Matriz de Registro de Eventos'!G11<='Matriz de Evaluación y Control'!$AD$9,'Matriz de Evaluación y Control'!$AE$9,IF('Matriz de Registro de Eventos'!G11>=$AC$10,'Matriz de Evaluación y Control'!$AE$10)))))) ->  | I11: =IF('Matriz de Registro de Eventos'!B11=0,0,ROUNDUP(AVERAGE(D11:H11),0)) -> 0 | K11: =IFERROR(_xlfn.XLOOKUP(J11,'Impacto y Frecuencia'!$M$7:$M$11,'Impacto y Frecuencia'!$L$7:$L$11),"") ->  | O11: =+IF('Matriz de Registro de Eventos'!B11>0,ROUNDUP(I11*(1-N11),0),0) -> 0 | Q11: =+IFERROR(_xlfn.XLOOKUP(P11,'Impacto y Frecuencia'!$M$7:$M$11,'Impacto y Frecuencia'!$L$7:$L$11),0) -> 0 | T11: 0
B12: =+'Matriz de Registro de Eventos'!A12 ->  | C12: =IF('Matriz de Registro de Eventos'!B12=0,"",'Matriz de Registro de Eventos'!B12) ->  | D12: =+IF('Matriz de Registro de Eventos'!B12=0,"",IF('Matriz de Registro de Eventos'!G12<'Matriz de Evaluación y Control'!$AD$6,'Matriz de Evaluación y Control'!$AE$6,IF('Matriz de Registro de Eventos'!G12<='Matriz de Evaluación y Control'!$AD$7,'Matriz de Evaluación y Control'!$AE$7,IF('Matriz de Registro de Eventos'!G12<='Matriz de Evaluación y Control'!$AD$8,'Matriz de Evaluación y Control'!$AE$8,IF('Matriz de Registro de Eventos'!G12<='Matriz de Evaluación y Control'!$AD$9,'Matriz de Evaluación y Control'!$AE$9,IF('Matriz de Registro de Eventos'!G12>=$AC$10,'Matriz de Evaluación y Control'!$AE$10)))))) ->  | I12: =IF('Matriz de Registro de Eventos'!B12=0,0,ROUNDUP(AVERAGE(D12:H12),0)) -> 0 | K12: =IFERROR(_xlfn.XLOOKUP(J12,'Impacto y Frecuencia'!$M$7:$M$11,'Impacto y Frecuencia'!$L$7:$L$11),"") ->  | O12: =+IF('Matriz de Registro de Eventos'!B12>0,ROUNDUP(I12*(1-N12),0),0) -> 0 | Q12: =+IFERROR(_xlfn.XLOOKUP(P12,'Impacto y Frecuencia'!$M$7:$M$11,'Impacto y Frecuencia'!$L$7:$L$11),0) -> 0 | T12: 0
B13: =+'Matriz de Registro de Eventos'!A13 ->  | C13: =IF('Matriz de Registro de Eventos'!B13=0,"",'Matriz de Registro de Eventos'!B13) ->  | D13: =+IF('Matriz de Registro de Eventos'!B13=0,"",IF('Matriz de Registro de Eventos'!G13<'Matriz de Evaluación y Control'!$AD$6,'Matriz de Evaluación y Control'!$AE$6,IF('Matriz de Registro de Eventos'!G13<='Matriz de Evaluación y Control'!$AD$7,'Matriz de Evaluación y Control'!$AE$7,IF('Matriz de Registro de Eventos'!G13<='Matriz de Evaluación y Control'!$AD$8,'Matriz de Evaluación y Control'!$AE$8,IF('Matriz de Registro de Eventos'!G13<='Matriz de Evaluación y Control'!$AD$9,'Matriz de Evaluación y Control'!$AE$9,IF('Matriz de Registro de Eventos'!G13>=$AC$10,'Matriz de Evaluación y Control'!$AE$10)))))) ->  | I13: =IF('Matriz de Registro de Eventos'!B13=0,0,ROUNDUP(AVERAGE(D13:H13),0)) -> 0 | K13: =IFERROR(_xlfn.XLOOKUP(J13,'Impacto y Frecuencia'!$M$7:$M$11,'Impacto y Frecuencia'!$L$7:$L$11),"") ->  | O13: =+IF('Matriz de Registro de Eventos'!B13>0,ROUNDUP(I13*(1-N13),0),0) -> 0 | Q13: =+IFERROR(_xlfn.XLOOKUP(P13,'Impacto y Frecuencia'!$M$7:$M$11,'Impacto y Frecuencia'!$L$7:$L$11),0) -> 0 | T13: 0
B14: =+'Matriz de Registro de Eventos'!A14 ->  | C14: =IF('Matriz de Registro de Eventos'!B14=0,"",'Matriz de Registro de Eventos'!B14) ->  | D14: =+IF('Matriz de Registro de Eventos'!B14=0,"",IF('Matriz de Registro de Eventos'!G14<'Matriz de Evaluación y Control'!$AD$6,'Matriz de Evaluación y Control'!$AE$6,IF('Matriz de Registro de Eventos'!G14<='Matriz de Evaluación y Control'!$AD$7,'Matriz de Evaluación y Control'!$AE$7,IF('Matriz de Registro de Eventos'!G14<='Matriz de Evaluación y Control'!$AD$8,'Matriz de Evaluación y Control'!$AE$8,IF('Matriz de Registro de Eventos'!G14<='Matriz de Evaluación y Control'!$AD$9,'Matriz de Evaluación y Control'!$AE$9,IF('Matriz de Registro de Eventos'!G14>=$AC$10,'Matriz de Evaluación y Control'!$AE$10)))))) ->  | I14: =IF('Matriz de Registro de Eventos'!B14=0,0,ROUNDUP(AVERAGE(D14:H14),0)) -> 0 | K14: =IFERROR(_xlfn.XLOOKUP(J14,'Impacto y Frecuencia'!$M$7:$M$11,'Impacto y Frecuencia'!$L$7:$L$11),"") ->  | O14: =+IF('Matriz de Registro de Eventos'!B14>0,ROUNDUP(I14*(1-N14),0),0) -> 0 | Q14: =+IFERROR(_xlfn.XLOOKUP(P14,'Impacto y Frecuencia'!$M$7:$M$11,'Impacto y Frecuencia'!$L$7:$L$11),0) -> 0 | T14: 0
B15: =+'Matriz de Registro de Eventos'!A15 ->  | C15: =IF('Matriz de Registro de Eventos'!B15=0,"",'Matriz de Registro de Eventos'!B15) ->  | D15: =+IF('Matriz de Registro de Eventos'!B15=0,"",IF('Matriz de Registro de Eventos'!G15<'Matriz de Evaluación y Control'!$AD$6,'Matriz de Evaluación y Control'!$AE$6,IF('Matriz de Registro de Eventos'!G15<='Matriz de Evaluación y Control'!$AD$7,'Matriz de Evaluación y Control'!$AE$7,IF('Matriz de Registro de Eventos'!G15<='Matriz de Evaluación y Control'!$AD$8,'Matriz de Evaluación y Control'!$AE$8,IF('Matriz de Registro de Eventos'!G15<='Matriz de Evaluación y Control'!$AD$9,'Matriz de Evaluación y Control'!$AE$9,IF('Matriz de Registro de Eventos'!G15>=$AC$10,'Matriz de Evaluación y Control'!$AE$10)))))) ->  | I15: =IF('Matriz de Registro de Eventos'!B15=0,0,ROUNDUP(AVERAGE(D15:H15),0)) -> 0 | K15: =IFERROR(_xlfn.XLOOKUP(J15,'Impacto y Frecuencia'!$M$7:$M$11,'Impacto y Frecuencia'!$L$7:$L$11),"") ->  | O15: =+IF('Matriz de Registro de Eventos'!B15>0,ROUNDUP(I15*(1-N15),0),0) -> 0 | Q15: =+IFERROR(_xlfn.XLOOKUP(P15,'Impacto y Frecuencia'!$M$7:$M$11,'Impacto y Frecuencia'!$L$7:$L$11),0) -> 0 | T15: 0
B16: =+'Matriz de Registro de Eventos'!A16 ->  | C16: =IF('Matriz de Registro de Eventos'!B16=0,"",'Matriz de Registro de Eventos'!B16) ->  | D16: =+IF('Matriz de Registro de Eventos'!B16=0,"",IF('Matriz de Registro de Eventos'!G16<'Matriz de Evaluación y Control'!$AD$6,'Matriz de Evaluación y Control'!$AE$6,IF('Matriz de Registro de Eventos'!G16<='Matriz de Evaluación y Control'!$AD$7,'Matriz de Evaluación y Control'!$AE$7,IF('Matriz de Registro de Eventos'!G16<='Matriz de Evaluación y Control'!$AD$8,'Matriz de Evaluación y Control'!$AE$8,IF('Matriz de Registro de Eventos'!G16<='Matriz de Evaluación y Control'!$AD$9,'Matriz de Evaluación y Control'!$AE$9,IF('Matriz de Registro de Eventos'!G16>=$AC$10,'Matriz de Evaluación y Control'!$AE$10)))))) ->  | I16: =IF('Matriz de Registro de Eventos'!B16=0,0,ROUNDUP(AVERAGE(D16:H16),0)) -> 0 | K16: =IFERROR(_xlfn.XLOOKUP(J16,'Impacto y Frecuencia'!$M$7:$M$11,'Impacto y Frecuencia'!$L$7:$L$11),"") ->  | O16: =+IF('Matriz de Registro de Eventos'!B16>0,ROUNDUP(I16*(1-N16),0),0) -> 0 | Q16: =+IFERROR(_xlfn.XLOOKUP(P16,'Impacto y Frecuencia'!$M$7:$M$11,'Impacto y Frecuencia'!$L$7:$L$11),0) -> 0 | T16: 0
B17: =+'Matriz de Registro de Eventos'!A17 ->  | C17: =IF('Matriz de Registro de Eventos'!B17=0,"",'Matriz de Registro de Eventos'!B17) ->  | D17: =+IF('Matriz de Registro de Eventos'!B17=0,"",IF('Matriz de Registro de Eventos'!G17<'Matriz de Evaluación y Control'!$AD$6,'Matriz de Evaluación y Control'!$AE$6,IF('Matriz de Registro de Eventos'!G17<='Matriz de Evaluación y Control'!$AD$7,'Matriz de Evaluación y Control'!$AE$7,IF('Matriz de Registro de Eventos'!G17<='Matriz de Evaluación y Control'!$AD$8,'Matriz de Evaluación y Control'!$AE$8,IF('Matriz de Registro de Eventos'!G17<='Matriz de Evaluación y Control'!$AD$9,'Matriz de Evaluación y Control'!$AE$9,IF('Matriz de Registro de Eventos'!G17>=$AC$10,'Matriz de Evaluación y Control'!$AE$10)))))) ->  | I17: =IF('Matriz de Registro de Eventos'!B17=0,0,ROUNDUP(AVERAGE(D17:H17),0)) -> 0 | K17: =IFERROR(_xlfn.XLOOKUP(J17,'Impacto y Frecuencia'!$M$7:$M$11,'Impacto y Frecuencia'!$L$7:$L$11),"") ->  | O17: =+IF('Matriz de Registro de Eventos'!B17>0,ROUNDUP(I17*(1-N17),0),0) -> 0 | Q17: =+IFERROR(_xlfn.XLOOKUP(P17,'Impacto y Frecuencia'!$M$7:$M$11,'Impacto y Frecuencia'!$L$7:$L$11),0) -> 0 | T17: 0
B18: =+'Matriz de Registro de Eventos'!A18 ->  | C18: =IF('Matriz de Registro de Eventos'!B18=0,"",'Matriz de Registro de Eventos'!B18) ->  | D18: =+IF('Matriz de Registro de Eventos'!B18=0,"",IF('Matriz de Registro de Eventos'!G18<'Matriz de Evaluación y Control'!$AD$6,'Matriz de Evaluación y Control'!$AE$6,IF('Matriz de Registro de Eventos'!G18<='Matriz de Evaluación y Control'!$AD$7,'Matriz de Evaluación y Control'!$AE$7,IF('Matriz de Registro de Eventos'!G18<='Matriz de Evaluación y Control'!$AD$8,'Matriz de Evaluación y Control'!$AE$8,IF('Matriz de Registro de Eventos'!G18<='Matriz de Evaluación y Control'!$AD$9,'Matriz de Evaluación y Control'!$AE$9,IF('Matriz de Registro de Eventos'!G18>=$AC$10,'Matriz de Evaluación y Control'!$AE$10)))))) ->  | I18: =IF('Matriz de Registro de Eventos'!B18=0,0,ROUNDUP(AVERAGE(D18:H18),0)) -> 0 | K18: =IFERROR(_xlfn.XLOOKUP(J18,'Impacto y Frecuencia'!$M$7:$M$11,'Impacto y Frecuencia'!$L$7:$L$11),"") ->  | O18: =+IF('Matriz de Registro de Eventos'!B18>0,ROUNDUP(I18*(1-N18),0),0) -> 0 | Q18: =+IFERROR(_xlfn.XLOOKUP(P18,'Impacto y Frecuencia'!$M$7:$M$11,'Impacto y Frecuencia'!$L$7:$L$11),0) -> 0 | T18: 0
B19: =+'Matriz de Registro de Eventos'!A19 ->  | C19: =IF('Matriz de Registro de Eventos'!B19=0,"",'Matriz de Registro de Eventos'!B19) ->  | D19: =+IF('Matriz de Registro de Eventos'!B19=0,"",IF('Matriz de Registro de Eventos'!G19<'Matriz de Evaluación y Control'!$AD$6,'Matriz de Evaluación y Control'!$AE$6,IF('Matriz de Registro de Eventos'!G19<='Matriz de Evaluación y Control'!$AD$7,'Matriz de Evaluación y Control'!$AE$7,IF('Matriz de Registro de Eventos'!G19<='Matriz de Evaluación y Control'!$AD$8,'Matriz de Evaluación y Control'!$AE$8,IF('Matriz de Registro de Eventos'!G19<='Matriz de Evaluación y Control'!$AD$9,'Matriz de Evaluación y Control'!$AE$9,IF('Matriz de Registro de Eventos'!G19>=$AC$10,'Matriz de Evaluación y Control'!$AE$10)))))) ->  | I19: =IF('Matriz de Registro de Eventos'!B19=0,0,ROUNDUP(AVERAGE(D19:H19),0)) -> 0 | K19: =IFERROR(_xlfn.XLOOKUP(J19,'Impacto y Frecuencia'!$M$7:$M$11,'Impacto y Frecuencia'!$L$7:$L$11),"") ->  | O19: =+IF('Matriz de Registro de Eventos'!B19>0,ROUNDUP(I19*(1-N19),0),0) -> 0 | Q19: =+IFERROR(_xlfn.XLOOKUP(P19,'Impacto y Frecuencia'!$M$7:$M$11,'Impacto y Frecuencia'!$L$7:$L$11),0) -> 0 | T19: 0
B20: =+'Matriz de Registro de Eventos'!A20 ->  | C20: =IF('Matriz de Registro de Eventos'!B20=0,"",'Matriz de Registro de Eventos'!B20) ->  | D20: =+IF('Matriz de Registro de Eventos'!B20=0,"",IF('Matriz de Registro de Eventos'!G20<'Matriz de Evaluación y Control'!$AD$6,'Matriz de Evaluación y Control'!$AE$6,IF('Matriz de Registro de Eventos'!G20<='Matriz de Evaluación y Control'!$AD$7,'Matriz de Evaluación y Control'!$AE$7,IF('Matriz de Registro de Eventos'!G20<='Matriz de Evaluación y Control'!$AD$8,'Matriz de Evaluación y Control'!$AE$8,IF('Matriz de Registro de Eventos'!G20<='Matriz de Evaluación y Control'!$AD$9,'Matriz de Evaluación y Control'!$AE$9,IF('Matriz de Registro de Eventos'!G20>=$AC$10,'Matriz de Evaluación y Control'!$AE$10)))))) ->  | I20: =IF('Matriz de Registro de Eventos'!B20=0,0,ROUNDUP(AVERAGE(D20:H20),0)) -> 0 | K20: =IFERROR(_xlfn.XLOOKUP(J20,'Impacto y Frecuencia'!$M$7:$M$11,'Impacto y Frecuencia'!$L$7:$L$11),"") ->  | O20: =+IF('Matriz de Registro de Eventos'!B20>0,ROUNDUP(I20*(1-N20),0),0) -> 0 | Q20: =+IFERROR(_xlfn.XLOOKUP(P20,'Impacto y Frecuencia'!$M$7:$M$11,'Impacto y Frecuencia'!$L$7:$L$11),0) -> 0 | T20: 0
B21: =+'Matriz de Registro de Eventos'!A21 ->  | C21: =IF('Matriz de Registro de Eventos'!B21=0,"",'Matriz de Registro de Eventos'!B21) ->  | D21: =+IF('Matriz de Registro de Eventos'!B21=0,"",IF('Matriz de Registro de Eventos'!G21<'Matriz de Evaluación y Control'!$AD$6,'Matriz de Evaluación y Control'!$AE$6,IF('Matriz de Registro de Eventos'!G21<='Matriz de Evaluación y Control'!$AD$7,'Matriz de Evaluación y Control'!$AE$7,IF('Matriz de Registro de Eventos'!G21<='Matriz de Evaluación y Control'!$AD$8,'Matriz de Evaluación y Control'!$AE$8,IF('Matriz de Registro de Eventos'!G21<='Matriz de Evaluación y Control'!$AD$9,'Matriz de Evaluación y Control'!$AE$9,IF('Matriz de Registro de Eventos'!G21>=$AC$10,'Matriz de Evaluación y Control'!$AE$10)))))) ->  | I21: =IF('Matriz de Registro de Eventos'!B21=0,0,ROUNDUP(AVERAGE(D21:H21),0)) -> 0 | K21: =IFERROR(_xlfn.XLOOKUP(J21,'Impacto y Frecuencia'!$M$7:$M$11,'Impacto y Frecuencia'!$L$7:$L$11),"") ->  | O21: =+IF('Matriz de Registro de Eventos'!B21>0,ROUNDUP(I21*(1-N21),0),0) -> 0 | Q21: =+IFERROR(_xlfn.XLOOKUP(P21,'Impacto y Frecuencia'!$M$7:$M$11,'Impacto y Frecuencia'!$L$7:$L$11),0) -> 0 | T21: 0
B22: =+'Matriz de Registro de Eventos'!A22 ->  | C22: =IF('Matriz de Registro de Eventos'!B22=0,"",'Matriz de Registro de Eventos'!B22) ->  | D22: =+IF('Matriz de Registro de Eventos'!B22=0,"",IF('Matriz de Registro de Eventos'!G22<'Matriz de Evaluación y Control'!$AD$6,'Matriz de Evaluación y Control'!$AE$6,IF('Matriz de Registro de Eventos'!G22<='Matriz de Evaluación y Control'!$AD$7,'Matriz de Evaluación y Control'!$AE$7,IF('Matriz de Registro de Eventos'!G22<='Matriz de Evaluación y Control'!$AD$8,'Matriz de Evaluación y Control'!$AE$8,IF('Matriz de Registro de Eventos'!G22<='Matriz de Evaluación y Control'!$AD$9,'Matriz de Evaluación y Control'!$AE$9,IF('Matriz de Registro de Eventos'!G22>=$AC$10,'Matriz de Evaluación y Control'!$AE$10)))))) ->  | I22: =IF('Matriz de Registro de Eventos'!B22=0,0,ROUNDUP(AVERAGE(D22:H22),0)) -> 0 | K22: =IFERROR(_xlfn.XLOOKUP(J22,'Impacto y Frecuencia'!$M$7:$M$11,'Impacto y Frecuencia'!$L$7:$L$11),"") ->  | O22: =+IF('Matriz de Registro de Eventos'!B22>0,ROUNDUP(I22*(1-N22),0),0) -> 0 | Q22: =+IFERROR(_xlfn.XLOOKUP(P22,'Impacto y Frecuencia'!$M$7:$M$11,'Impacto y Frecuencia'!$L$7:$L$11),0) -> 0 | T22: 0
B23: =+'Matriz de Registro de Eventos'!A23 ->  | C23: =IF('Matriz de Registro de Eventos'!B23=0,"",'Matriz de Registro de Eventos'!B23) ->  | D23: =+IF('Matriz de Registro de Eventos'!B23=0,"",IF('Matriz de Registro de Eventos'!G23<'Matriz de Evaluación y Control'!$AD$6,'Matriz de Evaluación y Control'!$AE$6,IF('Matriz de Registro de Eventos'!G23<='Matriz de Evaluación y Control'!$AD$7,'Matriz de Evaluación y Control'!$AE$7,IF('Matriz de Registro de Eventos'!G23<='Matriz de Evaluación y Control'!$AD$8,'Matriz de Evaluación y Control'!$AE$8,IF('Matriz de Registro de Eventos'!G23<='Matriz de Evaluación y Control'!$AD$9,'Matriz de Evaluación y Control'!$AE$9,IF('Matriz de Registro de Eventos'!G23>=$AC$10,'Matriz de Evaluación y Control'!$AE$10)))))) ->  | I23: =IF('Matriz de Registro de Eventos'!B23=0,0,ROUNDUP(AVERAGE(D23:H23),0)) -> 0 | K23: =IFERROR(_xlfn.XLOOKUP(J23,'Impacto y Frecuencia'!$M$7:$M$11,'Impacto y Frecuencia'!$L$7:$L$11),"") ->  | O23: =+IF('Matriz de Registro de Eventos'!B23>0,ROUNDUP(I23*(1-N23),0),0) -> 0 | Q23: =+IFERROR(_xlfn.XLOOKUP(P23,'Impacto y Frecuencia'!$M$7:$M$11,'Impacto y Frecuencia'!$L$7:$L$11),0) -> 0 | T23: 0

Sheet MRI
E1: MATRIZ DE RIESGO INHERENTE
B3: PROBABILIDAD | C3: Muy alta | D3: =+SUMIFS('Matriz de Evaluación y Control'!$L$5:$L$23,'Matriz de Evaluación y Control'!$I$5:$I$23,1,'Matriz de Evaluación y Control'!$K$5:$K$23,5) -> 0 | E3: =+SUMIFS('Matriz de Evaluación y Control'!$L$5:$L$23,'Matriz de Evaluación y Control'!$I$5:$I$23,2,'Matriz de Evaluación y Control'!$K$5:$K$23,5) -> 0 | F3: =+SUMIFS('Matriz de Evaluación y Control'!$L$5:$L$23,'Matriz de Evaluación y Control'!$I$5:$I$23,3,'Matriz de Evaluación y Control'!$K$5:$K$23,5) -> 0 | G3: =+SUMIFS('Matriz de Evaluación y Control'!$L$5:$L$23,'Matriz de Evaluación y Control'!$I$5:$I$23,4,'Matriz de Evaluación y Control'!$K$5:$K$23,5) -> 0 | H3: =+SUMIFS('Matriz de Evaluación y Control'!$L$5:$L$23,'Matriz de Evaluación y Control'!$I$5:$I$23,5,'Matriz de Evaluación y Control'!$K$5:$K$23,5) -> 25 | K3: RIESGO PONDERADO POR FACTORES | N3: RIESGO ASOCIADO PONDERADO
C4: Alta | D4: =+SUMIFS('Matriz de Evaluación y Control'!$L$5:$L$23,'Matriz de Evaluación y Control'!$I$5:$I$23,1,'Matriz de Evaluación y Control'!$K$5:$K$23,4) -> 0 | E4: =+SUMIFS('Matriz de Evaluación y Control'!$L$5:$L$23,'Matriz de Evaluación y Control'!$I$5:$I$23,2,'Matriz de Evaluación y Control'!$K$5:$K$23,4) -> 0 | F4: =+SUMIFS('Matriz de Evaluación y Control'!$L$5:$L$23,'Matriz de Evaluación y Control'!$I$5:$I$23,3,'Matriz de Evaluación y Control'!$K$5:$K$23,4) -> 0 | G4: =+SUMIFS('Matriz de Evaluación y Control'!$L$5:$L$23,'Matriz de Evaluación y Control'!$I$5:$I$23,4,'Matriz de Evaluación y Control'!$K$5:$K$23,4) -> 0 | H4: =+SUMIFS('Matriz de Evaluación y Control'!$L$5:$L$23,'Matriz de Evaluación y Control'!$I$5:$I$23,5,'Matriz de Evaluación y Control'!$K$5:$K$23,4) -> 0 | K4: Clientes | L4: =IFERROR(SUMIF('Matriz de Registro de Eventos'!$K$5:$K$23,">0",'Matriz de Evaluación y Control'!$L$5:$L$23)*AVERAGEIF('Matriz de Registro de Eventos'!$K$5:$K$23,">0",'Matriz de Registro de Eventos'!$K$5:$K$23)/5,"") -> 25.33333333 | N4: Riesgo Legal | O4: =IFERROR(SUMIF('Matriz de Evaluación y Control'!$E$5:$E$23,">0",'Matriz de Evaluación y Control'!$L$5:$L$23)*AVERAGEIF('Matriz de Evaluación y Control'!$E$5:$E$23,">0",'Matriz de Evaluación y Control'!$E$5:$E$23)/5,"") -> 22.8
C5: Media | D5: =+SUMIFS('Matriz de Evaluación y Control'!$L$5:$L$23,'Matriz de Evaluación y Control'!$I$5:$I$23,1,'Matriz de Evaluación y Control'!$K$5:$K$23,3) -> 0 | E5: =+SUMIFS('Matriz de Evaluación y Control'!$L$5:$L$23,'Matriz de Evaluación y Control'!$I$5:$I$23,2,'Matriz de Evaluación y Control'!$K$5:$K$23,3) -> 0 | F5: =+SUMIFS('Matriz de Evaluación y Control'!$L$5:$L$23,'Matriz de Evaluación y Control'!$I$5:$I$23,3,'Matriz de Evaluación y Control'!$K$5:$K$23,3) -> 0 | G5: =+SUMIFS('Matriz de Evaluación y Control'!$L$5:$L$23,'Matriz de Evaluación y Control'!$I$5:$I$23,4,'Matriz de Evaluación y Control'!$K$5:$K$23,3) -> 0 | H5: =+SUMIFS('Matriz de Evaluación y Control'!$L$5:$L$23,'Matriz de Evaluación y Control'!$I$5:$I$23,5,'Matriz de Evaluación y Control'!$K$5:$K$23,3) -> 0 | K5: Productos | L5: =IFERROR(SUMIF('Matriz de Registro de Eventos'!$L$5:$L$23,">0",'Matriz de Evaluación y Control'!$L$5:$L$23)*AVERAGEIF('Matriz de Registro de Eventos'!$L$5:$L$23,">0",'Matriz de Registro de Eventos'!$L$5:$L$23)/5,"") -> 30.4 | N5: Riesgo Reputacional | O5: =IFERROR(SUMIF('Matriz de Evaluación y Control'!$F$5:$F$23,">0",'Matriz de Evaluación y Control'!$L$5:$L$23)*AVERAGEIF('Matriz de Evaluación y Control'!$F$5:$F$23,">0",'Matriz de Evaluación y Control'!$F$5:$F$23)/5,"") -> 30.4
C6: Baja | D6: =+SUMIFS('Matriz de Evaluación y Control'!$L$5:$L$23,'Matriz de Evaluación y Control'!$I$5:$I$23,1,'Matriz de Evaluación y Control'!$K$5:$K$23,2) -> 0 | E6: =+SUMIFS('Matriz de Evaluación y Control'!$L$5:$L$23,'Matriz de Evaluación y Control'!$I$5:$I$23,2,'Matriz de Evaluación y Control'!$K$5:$K$23,2) -> 0 | F6: =+SUMIFS('Matriz de Evaluación y Control'!$L$5:$L$23,'Matriz de Evaluación y Control'!$I$5:$I$23,3,'Matriz de Evaluación y Control'!$K$5:$K$23,2) -> 0 | G6: =+SUMIFS('Matriz de Evaluación y Control'!$L$5:$L$23,'Matriz de Evaluación y Control'!$I$5:$I$23,4,'Matriz de Evaluación y Control'!$K$5:$K$23,2) -> 0 | H6: =+SUMIFS('Matriz de Evaluación y Control'!$L$5:$L$23,'Matriz de Evaluación y Control'!$I$5:$I$23,5,'Matriz de Evaluación y Control'!$K$5:$K$23,2) -> 10 | K6: Canales de Distribución | L6: =IFERROR(SUMIF('Matriz de Registro de Eventos'!$M$5:$M$23,">0",'Matriz de Evaluación y Control'!$L$5:$L$23)*AVERAGEIF('Matriz de Registro de Eventos'!$M$5:$M$23,">0",'Matriz de Registro de Eventos'!$M$5:$M$23)/5,"") -> 30.4 | N6: Riesgo Operativo | O6: =IFERROR(SUMIF('Matriz de Evaluación y Control'!$G$5:$G$23,">0",'Matriz de Evaluación y Control'!$L$5:$L$23)*AVERAGEIF('Matriz de Evaluación y Control'!$G$5:$G$23,">0",'Matriz de Evaluación y Control'!$G$5:$G$23)/5,"") -> 22.8
C7: Muy Baja | D7: =+SUMIFS('Matriz de Evaluación y Control'!$L$5:$L$23,'Matriz de Evaluación y Control'!$I$5:$I$23,1,'Matriz de Evaluación y Control'!$K$5:$K$23,1) -> 0 | E7: =+SUMIFS('Matriz de Evaluación y Control'!$L$5:$L$23,'Matriz de Evaluación y Control'!$I$5:$I$23,2,'Matriz de Evaluación y Control'!$K$5:$K$23,1) -> 0 | F7: =+SUMIFS('Matriz de Evaluación y Control'!$L$5:$L$23,'Matriz de Evaluación y Control'!$I$5:$I$23,3,'Matriz de Evaluación y Control'!$K$5:$K$23,1) -> 3 | G7: =+SUMIFS('Matriz de Evaluación y Control'!$L$5:$L$23,'Matriz de Evaluación y Control'!$I$5:$I$23,4,'Matriz de Evaluación y Control'!$K$5:$K$23,1) -> 0 | H7: =+SUMIFS('Matriz de Evaluación y Control'!$L$5:$L$23,'Matriz de Evaluación y Control'!$I$5:$I$23,5,'Matriz de Evaluación y Control'!$K$5:$K$23,1) -> 0 | K7: Jurisdicción | L7: =IFERROR(SUMIF('Matriz de Registro de Eventos'!$N$5:$N$23,">0",'Matriz de Evaluación y Control'!$L$5:$L$23)*AVERAGEIF('Matriz de Registro de Eventos'!$N$5:$N$23,">0",'Matriz de Registro de Eventos'!$N$5:$N$23)/5,"") -> 11.7 | N7: Riesgo de Contagio | O7: =IFERROR(SUMIF('Matriz de Evaluación y Control'!$H$5:$H$23,">0",'Matriz de Evaluación y Control'!$L$5:$L$23)*AVERAGEIF('Matriz de Evaluación y Control'!$H$5:$H$23,">0",'Matriz de Evaluación y Control'!$H$5:$H$23)/5,"") -> 32.93333333
D8: Minimo | E8: Menor | F8: Moderado | G8: Mayor | H8: Catastrofico
D9: IMPACTO | K9: RIESGO PONDERADO POR CONTRAPARTE
K10: Cliente | L10: =+SUMIF('Matriz de Registro de Eventos'!$J$5:$J$23,MRI!K10,'Matriz de Evaluación y Control'!$L$5:$L$23) -> 0
K11: Proveedor | L11: =+SUMIF('Matriz de Registro de Eventos'!$J$5:$J$23,MRI!K11,'Matriz de Evaluación y Control'!$L$5:$L$23) -> 0
B12: Zona de Riesgo | C12: Manejo | D12: Zona | K12: Empleado | L12: =+SUMIF('Matriz de Registro de Eventos'!$J$5:$J$23,MRI!K12,'Matriz de Evaluación y Control'!$L$5:$L$23) -> 0
B13: Aceptable | C13: Aceptar | K13: Accionista | L13: =+SUMIF('Matriz de Registro de Eventos'!$J$5:$J$23,MRI!K13,'Matriz de Evaluación y Control'!$L$5:$L$23) -> 3
B14: Moderado | C14: Mitigar | K14: Aliado de negocio | L14: =+SUMIF('Matriz de Registro de Eventos'!$J$5:$J$23,MRI!K14,'Matriz de Evaluación y Control'!$L$5:$L$23) -> 35
B15: Importante | C15: Prevenir/transferir
B16: Inaceptable | C16: Evitar

Sheet MRR
E1: MATRIZ DE RIESGO RESIDUAL
B3: PROBABILIDAD | C3: Muy alta | D3: =+SUMIFS('Matriz de Evaluación y Control'!$T$5:$T$23,'Matriz de Evaluación y Control'!$O$5:$O$23,1,'Matriz de Evaluación y Control'!$Q$5:$Q$23,5) -> 0 | E3: =+SUMIFS('Matriz de Evaluación y Control'!$T$5:$T$23,'Matriz de Evaluación y Control'!$O$5:$O$23,2,'Matriz de Evaluación y Control'!$Q$5:$Q$23,5) -> 0 | F3: =+SUMIFS('Matriz de Evaluación y Control'!$T$5:$T$23,'Matriz de Evaluación y Control'!$O$5:$O$23,3,'Matriz de Evaluación y Control'!$Q$5:$Q$23,5) -> 0 | G3: =+SUMIFS('Matriz de Evaluación y Control'!$T$5:$T$23,'Matriz de Evaluación y Control'!$O$5:$O$23,4,'Matriz de Evaluación y Control'!$Q$5:$Q$23,5) -> 0 | H3: =+SUMIFS('Matriz de Evaluación y Control'!$T$5:$T$23,'Matriz de Evaluación y Control'!$O$5:$O$23,5,'Matriz de Evaluación y Control'!$Q$5:$Q$23,5) -> 0 | K3: RIESGO PONDERADO POR FACTORES | N3: RIESGO ASOCIADO PONDERADO
C4: Alta | D4: =+SUMIFS('Matriz de Evaluación y Control'!$T$5:$T$23,'Matriz de Evaluación y Control'!$O$5:$O$23,1,'Matriz de Evaluación y Control'!$Q$5:$Q$23,4) -> 0 | E4: =+SUMIFS('Matriz de Evaluación y Control'!$T$5:$T$23,'Matriz de Evaluación y Control'!$O$5:$O$23,2,'Matriz de Evaluación y Control'!$Q$5:$Q$23,4) -> 0 | F4: =+SUMIFS('Matriz de Evaluación y Control'!$T$5:$T$23,'Matriz de Evaluación y Control'!$O$5:$O$23,3,'Matriz de Evaluación y Control'!$Q$5:$Q$23,4) -> 0 | G4: =+SUMIFS('Matriz de Evaluación y Control'!$T$5:$T$23,'Matriz de Evaluación y Control'!$O$5:$O$23,4,'Matriz de Evaluación y Control'!$Q$5:$Q$23,4) -> 0 | H4: =+SUMIFS('Matriz de Evaluación y Control'!$T$5:$T$23,'Matriz de Evaluación y Control'!$O$5:$O$23,5,'Matriz de Evaluación y Control'!$Q$5:$Q$23,4) -> 0 | K4: Clientes | L4: =IFERROR(SUMIF('Matriz de Registro de Eventos'!$K$5:$K$23,">0",'Matriz de Evaluación y Control'!$T$5:$T$23)*AVERAGE('Matriz de Registro de Eventos'!$K$5:$K$23)/5,"") -> 11.33333333 | N4: Riesgo Legal | O4: =IFERROR(SUMIF('Matriz de Evaluación y Control'!$E$5:$E$23,">0",'Matriz de Evaluación y Control'!$T$5:$T$23)*AVERAGEIF('Matriz de Evaluación y Control'!$E$5:$E$23,">0",'Matriz de Evaluación y Control'!$E$5:$E$23)/5,"") -> 10.2
C5: Media | D5: =+SUMIFS('Matriz de Evaluación y Control'!$T$5:$T$23,'Matriz de Evaluación y Control'!$O$5:$O$23,1,'Matriz de Evaluación y Control'!$Q$5:$Q$23,3) -> 0 | E5: =+SUMIFS('Matriz de Evaluación y Control'!$T$5:$T$23,'Matriz de Evaluación y Control'!$O$5:$O$23,2,'Matriz de Evaluación y Control'!$Q$5:$Q$23,3) -> 0 | F5: =+SUMIFS('Matriz de Evaluación y Control'!$T$5:$T$23,'Matriz de Evaluación y Control'!$O$5:$O$23,3,'Matriz de Evaluación y Control'!$Q$5:$Q$23,3) -> 9 | G5: =+SUMIFS('Matriz de Evaluación y Control'!$T$5:$T$23,'Matriz de Evaluación y Control'!$O$5:$O$23,4,'Matriz de Evaluación y Control'!$Q$5:$Q$23,3) -> 0 | H5: =+SUMIFS('Matriz de Evaluación y Control'!$T$5:$T$23,'Matriz de Evaluación y Control'!$O$5:$O$23,5,'Matriz de Evaluación y Control'!$Q$5:$Q$23,3) -> 0 | K5: Productos | L5: =IFERROR(SUMIF('Matriz de Registro de Eventos'!$L$5:$L$23,">0",'Matriz de Evaluación y Control'!$T$5:$T$23)*AVERAGE('Matriz de Registro de Eventos'!$L$5:$L$23)/5,"") -> 13.6 | N5: Riesgo Reputacional | O5: =IFERROR(SUMIF('Matriz de Evaluación y Control'!$F$5:$F$23,">0",'Matriz de Evaluación y Control'!$T$5:$T$23)*AVERAGEIF('Matriz de Evaluación y Control'!$F$5:$F$23,">0",'Matriz de Evaluación y Control'!$F$5:$F$23)/5,"") -> 13.6
C6: Baja | D6: =+SUMIFS('Matriz de Evaluación y Control'!$T$5:$T$23,'Matriz de Evaluación y Control'!$O$5:$O$23,1,'Matriz de Evaluación y Control'!$Q$5:$Q$23,2) -> 0 | E6: =+SUMIFS('Matriz de Evaluación y Control'!$T$5:$T$23,'Matriz de Evaluación y Control'!$O$5:$O$23,2,'Matriz de Evaluación y Control'!$Q$5:$Q$23,2) -> 0 | F6: =+SUMIFS('Matriz de Evaluación y Control'!$T$5:$T$23,'Matriz de Evaluación y Control'!$O$5:$O$23,3,'Matriz de Evaluación y Control'!$Q$5:$Q$23,2) -> 6 | G6: =+SUMIFS('Matriz de Evaluación y Control'!$T$5:$T$23,'Matriz de Evaluación y Control'!$O$5:$O$23,4,'Matriz de Evaluación y Control'!$Q$5:$Q$23,2) -> 0 | H6: =+SUMIFS('Matriz de Evaluación y Control'!$T$5:$T$23,'Matriz de Evaluación y Control'!$O$5:$O$23,5,'Matriz de Evaluación y Control'!$Q$5:$Q$23,2) -> 0 | K6: Canales de Distribución | L6: =IFERROR(SUMIF('Matriz de Registro de Eventos'!$M$5:$M$23,">0",'Matriz de Evaluación y Control'!$T$5:$T$23)*AVERAGE('Matriz de Registro de Eventos'!$M$5:$M$23)/5,"") -> 13.6 | N6: Riesgo Operativo | O6: =IFERROR(SUMIF('Matriz de Evaluación y Control'!$G$5:$G$23,">0",'Matriz de Evaluación y Control'!$T$5:$T$23)*AVERAGEIF('Matriz de Evaluación y Control'!$G$5:$G$23,">0",'Matriz de Evaluación y Control'!$G$5:$G$23)/5,"") -> 10.2
C7: Muy Baja | D7: =+SUMIFS('Matriz de Evaluación y Control'!$T$5:$T$23,'Matriz de Evaluación y Control'!$O$5:$O$23,1,'Matriz de Evaluación y Control'!$Q$5:$Q$23,1) -> 0 | E7: =+SUMIFS('Matriz de Evaluación y Control'!$T$5:$T$23,'Matriz de Evaluación y Control'!$O$5:$O$23,2,'Matriz de Evaluación y Control'!$Q$5:$Q$23,1) -> 2 | F7: =+SUMIFS('Matriz de Evaluación y Control'!$T$5:$T$23,'Matriz de Evaluación y Control'!$O$5:$O$23,3,'Matriz de Evaluación y Control'!$Q$5:$Q$23,1) -> 0 | G7: =+SUMIFS('Matriz de Evaluación y Control'!$T$5:$T$23,'Matriz de Evaluación y Control'!$O$5:$O$23,4,'Matriz de Evaluación y Control'!$Q$5:$Q$23,1) -> 0 | H7: =+SUMIFS('Matriz de Evaluación y Control'!$T$5:$T$23,'Matriz de Evaluación y Control'!$O$5:$O$23,5,'Matriz de Evaluación y Control'!$Q$5:$Q$23,1) -> 0 | K7: Jurisdicción | L7: =IFERROR(SUMIF('Matriz de Registro de Eventos'!$N$5:$N$23,">0",'Matriz de Evaluación y Control'!$T$5:$T$23)*AVERAGE('Matriz de Registro de Eventos'!$N$5:$N$23)/5,"") -> 4.8 | N7: Riesgo de Contagio | O7: =IFERROR(SUMIF('Matriz de Evaluación y Control'!$H$5:$H$23,">0",'Matriz de Evaluación y Control'!$T$5:$T$23)*AVERAGEIF('Matriz de Evaluación y Control'!$H$5:$H$23,">0",'Matriz de Evaluación y Control'!$H$5:$H$23)/5,"") -> 14.73333333
D8: Minimo | E8: Menor | F8: Moderado | G8: Mayor | H8: Catastrofico
D9: IMPACTO | K9: RIESGO PONDERADO POR CONTRAPARTE
K10: Cliente | L10: =+SUMIF('Matriz de Registro de Eventos'!$J$5:$J$23,MRI!K10,'Matriz de Evaluación y Control'!$T$5:$T$23) -> 0
B11: Zona de Riesgo | C11: Manejo | D11: Zona | K11: Proveedor | L11: =+SUMIF('Matriz de Registro de Eventos'!$J$5:$J$23,MRI!K11,'Matriz de Evaluación y Control'!$T$5:$T$23) -> 0
B12: Aceptable | C12: Aceptar | K12: Empleado | L12: =+SUMIF('Matriz de Registro de Eventos'!$J$5:$J$23,MRI!K12,'Matriz de Evaluación y Control'!$T$5:$T$23) -> 0
B13: Moderado | C13: Mitigar | K13: Accionista | L13: =+SUMIF('Matriz de Registro de Eventos'!$J$5:$J$23,MRI!K13,'Matriz de Evaluación y Control'!$T$5:$T$23) -> 2
B14: Importante | C14: Prevenir/transferir | K14: Aliado de negocio | L14: =+SUMIF('Matriz de Registro de Eventos'!$J$5:$J$23,MRI!K14,'Matriz de Evaluación y Control'!$T$5:$T$23) -> 15
B15: Inaceptable | C15: Evitar
